[Event "Klatovy Open-C 2024"]
[Site "Klatovy"]
[Date "2024.06.29"]
[Round "1.1"]
[White "Macho, Miloslav"]
[Black "Kopta, Pavel"]
[Result "1/2-1/2"]
[ECO "B07"]
[WhiteElo "1845"]
[BlackElo "2193"]
[Annotator "RC"]
[PlyCount "57"]
[EventDate "2024.06.21"]
[EventType "swiss"]
[EventCountry "CZE"]
[SourceTitle "playchess.com"]
[Source "ChessBase"]
[SourceQuality "1"]
[TimeControl "40/7200:0"]

1. Nf3 {[%emt 0:00:00]} g6 {[%emt 0:00:02]} 2. e4 {[%emt 0:00:00]} Bg7 {[%emt 0:00:29]} 3. Bc4 {[%emt 0:00:22]} d6 {[%emt 0:03:11]} 4. O-O {[%emt 0:01:57]} Nf6 {[%emt 0:00:10]} 5. Nc3 {[%emt 0:00:18]} O-O {[%emt 0:00:07]} 6. d3 {[%emt 0:02:18]} c6 {[%emt 0:02:04]} 7. Bb3 {[%emt 0:03:42]} Nbd7 {[%emt 0:03:26]} 8. a3 {[%emt 0:00:55]} Nc5 {[%emt 0:05:14]} 9. Ba2 {[%emt 0:00:05]} d5 {[%emt 0:02:01]} 10. e5 {[%emt 0:04:03]} Nfd7 {[%emt 0:03:23]} 11. Re1 {[%emt 0:04:10]} Ne6 {[%emt 0:04:26]} 12. d4 {[%emt 0:04:20]} Nb6 {[%emt 0:00:26]} 13. Rb1 {[%emt 0:08:41]} Qc7 {[%emt 0:02:49]} 14. a4 {[%emt 0:02:15]} Rd8 {[%emt 0:02:28]} 15. b3 {[%emt 0:04:46]} a5 {[%emt 0:03:38]} 16. Qd2 {[%emt 0:06:20]} Bd7 {[%emt 0:09:17]} 17. Ba3 {[%emt 0:00:15]} Be8 {[%emt 0:00:23]} 18. Rbd1 {[%emt 0:07:02]} h6 {[%emt 0:02:42]} 19. Bb1 {[%emt 0:02:31]} Bf8 {[%emt 0:14:32]} 20. Ne2 {[%emt 0:10:50]} Bd7 {[%emt 0:06:42]} 21. h4 {[%emt 0:04:00]} Re8 {[%emt 0:01:22]} 22. h5 {[%emt 0:04:36]} Bg7 {[%emt 0:03:00]} 23. hxg6 {[%emt 0:00:00]} fxg6 {[%emt 0:00:00]} 24. c4 {[%emt 0:00:15]} Nf8 {[%emt 0:08:04]} 25. c5 {[%emt 0:05:44]} Nc8 {[%emt 0:00:00]} 26. Nh4 {[%emt 0:01:41]} g5 {[%emt 0:02:00]} 27. Nf5 {[%emt 0:01:48]} Bxf5 {[%emt 0:00:30]} 28. Bxf5 {[%emt 0:00:00]} e6 {[%emt 0:00:00]} 29. Bd3 {[%emt 0:37:06]} 1/2-1/2

[Event "Klatovy Open-C 2024"]
[Site "Klatovy"]
[Date "2024.06.29"]
[Round "1.2"]
[White "Korsa, Jindrich"]
[Black "Berka, Lubos"]
[Result "1/2-1/2"]
[ECO "B17"]
[WhiteElo "2036"]
[BlackElo "1835"]
[Annotator "RC"]
[PlyCount "101"]
[EventDate "2024.06.21"]
[EventType "swiss"]
[EventCountry "CZE"]
[SourceTitle "playchess.com"]
[Source "ChessBase"]
[SourceQuality "1"]
[TimeControl "40/7200:0"]

1. e4 {[%emt 0:01:50]} c6 {[%emt 0:00:00]} 2. Nc3 {[%emt 0:00:00]} d5 {[%emt 0:00:00]} 3. Nf3 {[%emt 0:00:00]} dxe4 {[%emt 0:00:00]} 4. Nxe4 {[%emt 0:00:00]} Nf6 {[%emt 0:00:00]} 5. Ng3 {[%emt 0:00:00]} Nbd7 {[%emt 0:00:00]} 6. d4 {[%emt 0:00:00]} Nb6 {[%emt 0:00:00]} 7. Be2 {[%emt 0:01:37]} Bg4 {[%emt 0:00:18]} 8. O-O {[%emt 0:00:28]} e6 {[%emt 0:00:00]} 9. b3 {[%emt 0:02:13]} Qc7 {[%emt 0:00:57]} 10. Ne5 {[%emt 0:04:11]} Bxe2 {[%emt 0:00:11]} 11. Qxe2 {[%emt 0:00:00]} Bd6 {[%emt 0:04:17]} 12. c4 {[%emt 0:01:11]} c5 {[%emt 0:01:54]} 13. Bb2 {[%emt 0:03:08]} O-O {[%emt 0:02:17]} 14. Ng4 {[%emt 0:02:17]} Nxg4 {[%emt 0:03:19]} 15. Qxg4 {[%emt 0:00:00]} cxd4 {[%emt 0:00:44]} 16. Qxd4 {[%emt 0:03:34]} f6 {[%emt 0:01:54]} 17. Qe3 {[%emt 0:04:14]} Rae8 {[%emt 0:06:32]} 18. Rad1 {[%emt 0:02:15]} Bxg3 {[%emt 0:05:06]} 19. hxg3 {[%emt 0:00:00]} e5 {[%emt 0:06:32]} 20. Ba3 {[%emt 0:06:16]} Rf7 {[%emt 0:00:00]} 21. Bd6 {[%emt 0:00:18]} Qc6 {[%emt 0:02:38]} 22. Bc5 {[%emt 0:09:19]} Nc8 {[%emt 0:03:10]} 23. Rd2 {[%emt 0:02:01]} b6 {[%emt 0:00:09]} 24. Bb4 {[%emt 0:01:26]} Rd7 {[%emt 0:00:54]} 25. c5 {[%emt 0:03:45]} Red8 {[%emt 0:02:04]} 26. Rxd7 {[%emt 0:01:00]} Qxd7 {[%emt 0:04:37]} 27. Rc1 {[%emt 0:01:24]} bxc5 {[%emt 0:02:42]} 28. Qxc5 {[%emt 0:00:07]} Nb6 {[%emt 0:08:11]} 29. Qe7 {[%emt 0:06:26]} Qxe7 {[%emt 0:07:56]} 30. Bxe7 {[%emt 0:00:00]} Rd7 {[%emt 0:00:31]} 31. Bb4 {[%emt 0:00:00]} Kf7 {[%emt 0:02:08]} 32. Kf1 {[%emt 0:03:25]} e4 {[%emt 0:02:16]} 33. Ke2 {[%emt 0:00:37]} f5 {[%emt 0:00:00]} 34. a4 {[%emt 0:07:34]} Nd5 {[%emt 0:04:16]} 35. Be1 {[%emt 0:04:48]} Rb7 {[%emt 0:01:02]} 36. Rb1 {[%emt 0:00:00]} Rc7 {[%emt 0:02:24]} 37. a5 {[%emt 0:05:33]} Rc2+ {[%emt 0:01:21]} 38. Kd1 {[%emt 0:03:34]} Ra2 {[%emt 0:02:03]} 39. Bd2 {[%emt 0:35:29]} g5 {[%emt 0:37:37]} 40. b4 {[%emt 0:00:00]} f4 {[%emt 0:00:00]} 41. gxf4 {[%emt 2:00:00]} gxf4 {[%emt 2:00:00]} 42. b5 e3 {[%emt 0:00:00]} 43. fxe3 {[%emt 0:00:00]} fxe3 {[%emt 0:00:00]} 44. Be1 e2+ {[%emt 0:00:00]} 45. Kc1 {[%emt 0:00:00]} Ne3 {[%emt 0:00:00]} 46. Rb3 {[%emt 0:00:00]} Nxg2 {[%emt 0:00:00]} 47. b6 {[%emt 0:00:00]} axb6 {[%emt 0:00:00]} 48. axb6 {[%emt 0:00:00]} Ra8 {[%emt 0:00:00]} 49. b7 {[%emt 0:00:00]} Rb8 {[%emt 0:00:00]} 50. Kd2 {[%emt 0:00:00]} Nxe1 {[%emt 0:00:00]} 51. Kxe1 {[%emt 0:00:00]} 1/2-1/2

[Event "Klatovy Open-C 2024"]
[Site "Klatovy"]
[Date "2024.06.29"]
[Round "1.3"]
[White "Vavrinek, Tomas"]
[Black "Zahorbensky, Jaroslav"]
[Result "0-1"]
[ECO "D03"]
[WhiteElo "1827"]
[BlackElo "2032"]
[Annotator "RC"]
[PlyCount "78"]
[EventDate "2024.06.21"]
[EventType "swiss"]
[EventCountry "CZE"]
[SourceTitle "playchess.com"]
[Source "ChessBase"]
[SourceQuality "1"]
[TimeControl "40/7200:0"]

1. d4 {[%emt 0:00:00]} d5 {[%emt 0:00:00]} 2. Nf3 {[%emt 0:00:00]} Nf6 {[%emt 0:00:00]} 3. Bg5 {[%emt 0:00:00]} Ne4 {[%emt 0:00:00]} 4. Bh4 {[%emt 0:00:00]} c6 {[%emt 0:00:00]} 5. c3 {[%emt 0:03:14]} Qb6 {[%emt 0:00:00]} 6. Qb3 {[%emt 0:00:19]} Bf5 {[%emt 0:00:00]} 7. Nbd2 {[%emt 0:02:11]} Nd7 {[%emt 0:00:00]} 8. e3 {[%emt 0:00:43]} e6 {[%emt 0:00:00]} 9. Qxb6 {[%emt 0:01:22]} axb6 {[%emt 0:00:00]} 10. Nxe4 {[%emt 0:00:00]} Bxe4 {[%emt 0:00:00]} 11. Be2 {[%emt 0:00:00]} b5 {[%emt 0:05:44]} 12. O-O {[%emt 0:01:44]} b4 {[%emt 0:03:54]} 13. cxb4 {[%emt 0:01:00]} Bxb4 {[%emt 0:00:00]} 14. a3 {[%emt 0:00:00]} Bd6 {[%emt 0:00:00]} 15. Nd2 {[%emt 0:12:18]} Bg6 {[%emt 0:04:52]} 16. b4 {[%emt 0:01:13]} O-O {[%emt 0:11:31]} 17. Rfc1 {[%emt 0:01:00]} Rfc8 {[%emt 0:01:47]} 18. Bg3 {[%emt 0:01:32]} Bxg3 {[%emt 0:10:13]} 19. hxg3 {[%emt 0:00:00]} Kf8 {[%emt 0:00:00]} 20. Nb3 {[%emt 0:00:00]} Ke7 {[%emt 0:00:00]} 21. Nc5 {[%emt 0:05:54]} b6 {[%emt 0:01:54]} 22. Nxd7 {[%emt 0:00:00]} Kxd7 {[%emt 0:00:00]} 23. b5 {[%emt 0:00:35]} c5 {[%emt 0:06:21]} 24. dxc5 {[%emt 0:00:07]} Rxc5 {[%emt 0:00:00]} 25. Rxc5 {[%emt 0:00:00]} bxc5 {[%emt 0:00:00]} 26. a4 {[%emt 0:02:17]} Ra5 {[%emt 0:00:00]} 27. Bd1 {[%emt 0:10:39]} Bd3 {[%emt 0:02:18]} 28. Rc1 {[%emt 0:00:50]} c4 {[%emt 0:00:23]} 29. f4 {[%emt 0:00:14]} f6 {[%emt 0:01:12]} 30. Kf2 {[%emt 0:00:00]} Kd6 {[%emt 0:00:10]} 31. Ke1 {[%emt 0:00:00]} e5 {[%emt 0:06:39]} 32. g4 {[%emt 0:04:39]} d4 {[%emt 0:06:55]} 33. Kd2 {[%emt 0:01:14]} Kc5 {[%emt 0:00:03]} 34. g3 {[%emt 0:00:16]} Be4 {[%emt 0:01:45]} 35. exd4+ {[%emt 0:04:43]} exd4 {[%emt 0:05:00]} 36. Ra1 {[%emt 0:00:05]} c3+ {[%emt 0:02:03]} 37. Kc1 {[%emt 0:00:43]} d3 {[%emt 0:03:14]} 38. Bb3 {[%emt 0:01:36]} Kd4 {[%emt 0:03:09]} 39. Kd1 {[%emt 0:05:05]} Ke3 {[%emt 0:00:00]} 0-1

[Event "Klatovy Open-C 2024"]
[Site "Klatovy"]
[Date "2024.06.29"]
[Round "1.4"]
[White "Chalus, Karel"]
[Black "Truksa, Vaclav"]
[Result "1-0"]
[ECO "B24"]
[WhiteElo "1982"]
[BlackElo "1818"]
[Annotator "RC"]
[PlyCount "147"]
[EventDate "2024.06.21"]
[EventType "swiss"]
[EventCountry "CZE"]
[SourceTitle "playchess.com"]
[Source "ChessBase"]
[SourceQuality "1"]
[TimeControl "40/7200:0"]

1. e4 {[%emt 0:00:00]} c5 {[%emt 0:00:00]} 2. Nc3 {[%emt 0:00:00]} e6 {[%emt 0:00:00]} 3. g3 {[%emt 0:00:51]} Nc6 {[%emt 0:00:00]} 4. Bg2 {[%emt 0:00:08]} Nf6 {[%emt 0:00:00]} 5. f4 {[%emt 0:06:01]} d6 {[%emt 0:03:25]} 6. Nf3 {[%emt 0:00:13]} Be7 {[%emt 0:01:10]} 7. O-O {[%emt 0:00:20]} O-O {[%emt 0:00:00]} 8. d3 {[%emt 0:03:30]} Qc7 {[%emt 0:05:45]} 9. h3 {[%emt 0:19:54]} a6 {[%emt 0:09:20]} 10. a4 {[%emt 0:03:12]} Rb8 {[%emt 0:01:16]} 11. Ne2 {[%emt 0:05:20]} b5 {[%emt 0:01:38]} 12. axb5 {[%emt 0:00:47]} axb5 {[%emt 0:00:00]} 13. g4 {[%emt 0:07:22]} Bb7 {[%emt 0:03:53]} 14. Be3 {[%emt 0:06:34]} Ra8 {[%emt 0:00:33]} 15. Qd2 {[%emt 0:05:39]} Rxa1 {[%emt 0:00:00]} 16. Rxa1 {[%emt 0:00:00]} Ra8 {[%emt 0:00:06]} 17. Rxa8+ {[%emt 0:01:58]} Bxa8 {[%emt 0:00:00]} 18. Ng3 {[%emt 0:00:00]} Qa5 {[%emt 0:01:26]} 19. c3 {[%emt 0:02:26]} b4 {[%emt 0:02:59]} 20. c4 {[%emt 0:06:51]} Bb7 {[%emt 0:05:16]} 21. e5 {[%emt 0:18:05]} Ne8 {[%emt 0:06:05]} 22. exd6 {[%emt 0:02:24]} Nxd6 {[%emt 0:01:47]} 23. Qf2 {[%emt 0:00:59]} Ne8 {[%emt 0:03:05]} 24. Ne4 {[%emt 0:00:01]} Nd4 {[%emt 0:04:23]} 25. Nxd4 {[%emt 0:00:32]} cxd4 {[%emt 0:02:54]} 26. Bxd4 {[%emt 0:00:00]} Bxe4 {[%emt 0:00:26]} 27. Bxe4 {[%emt 0:05:36]} b3 {[%emt 0:03:13]} 28. Bc3 {[%emt 0:01:52]} Qc7 {[%emt 0:01:37]} 29. Qf1 {[%emt 0:02:28]} Bd6 {[%emt 0:03:25]} 30. Bd2 {[%emt 0:02:06]} Bc5+ {[%emt 0:02:38]} 31. Kh1 {[%emt 0:01:04]} Bd4 {[%emt 0:02:53]} 32. Qa1 {[%emt 0:00:07]} Qb8 {[%emt 0:02:04]} 33. Qc1 {[%emt 0:00:42]} Nf6 {[%emt 0:02:52]} 34. Bg2 {[%emt 0:00:11]} Qb6 {[%emt 0:01:51]} 35. Bc3 {[%emt 0:00:36]} Nd7 {[%emt 0:01:35]} 36. Qe1 {[%emt 0:03:09]} g6 {[%emt 0:04:04]} 37. f5 {[%emt 0:03:22]} e5 {[%emt 0:00:50]} 38. fxg6 {[%emt 0:01:28]} hxg6 {[%emt 0:03:15]} 39. Bd5 {[%emt 0:00:52]} Nf6 {[%emt 0:05:55]} 40. c5 {[%emt 0:00:51]} Qb8 {[%emt 0:03:01]} 41. Bxd4 {[%emt 2:00:33]} exd4 {[%emt 2:00:01]} 42. Bf3 {[%emt 0:00:26]} Qf4 {[%emt 0:02:01]} 43. Kg2 {[%emt 0:00:13]} Kg7 {[%emt 0:00:37]} 44. c6 {[%emt 0:00:03]} Qd6 {[%emt 0:00:37]} 45. Qa5 {[%emt 0:00:19]} Ne8 {[%emt 0:00:54]} 46. Qb5 {[%emt 0:00:09]} Qf4 {[%emt 0:00:54]} 47. Qxb3 {[%emt 0:00:05]} Qd2+ {[%emt 0:00:00]} 48. Kg3 {[%emt 0:00:00]} Qe1+ {[%emt 0:00:00]} 49. Kg2 {[%emt 0:00:00]} Qd2+ {[%emt 0:00:00]} 50. Kf1 {[%emt 0:00:00]} Qc1+ {[%emt 0:02:43]} 51. Qd1 {[%emt 0:00:00]} Qxb2 {[%emt 0:00:00]} 52. Qe2 {[%emt 0:00:00]} Qc1+ {[%emt 0:00:00]} 53. Kg2 {[%emt 0:00:00]} Qe3 {[%emt 0:00:10]} 54. Qxe3 {[%emt 0:00:00]} dxe3 {[%emt 0:00:00]} 55. Kg3 {[%emt 0:00:00]} g5 {[%emt 0:00:00]} 56. Be4 {[%emt 0:00:00]} Kf6 {[%emt 0:00:00]} 57. Kf3 {[%emt 0:00:00]} Ke6 {[%emt 0:00:00]} 58. Kxe3 {[%emt 0:00:00]} Kd6 {[%emt 0:00:00]} 59. d4 {[%emt 0:00:00]} f6 {[%emt 0:00:00]} 60. Kd3 {[%emt 0:00:00]} Nc7 {[%emt 0:00:00]} 61. Bg2 {[%emt 0:00:00]} Ne8 {[%emt 0:00:00]} 62. Kc4 {[%emt 0:00:00]} Nc7 {[%emt 0:00:00]} 63. d5 {[%emt 0:00:00]} Ne8 {[%emt 0:00:00]} 64. Kb5 {[%emt 0:00:00]} Nc7+ {[%emt 0:00:00]} 65. Kb6 {[%emt 0:00:00]} Ne8 {[%emt 0:00:00]} 66. Kb7 {[%emt 0:00:00]} Nc7 {[%emt 0:00:00]} 67. Kc8 {[%emt 0:00:00]} Nb5 {[%emt 0:00:00]} 68. Kd8 {[%emt 0:00:00]} Nc7 {[%emt 0:00:00]} 69. Bf3 {[%emt 0:00:00]} Nb5 {[%emt 0:00:58]} 70. Be2 {[%emt 0:00:00]} Nc7 {[%emt 0:00:00]} 71. Bc4 {[%emt 0:00:00]} Na8 {[%emt 0:00:00]} 72. Ke8 {[%emt 0:00:00]} Nc7+ {[%emt 0:01:02]} 73. Kf7 {[%emt 0:00:00]} Ke5 {[%emt 0:02:08]} 74. Ke7 {[%emt 0:00:41]} 1-0

[Event "Klatovy Open-C 2024"]
[Site "Klatovy"]
[Date "2024.06.29"]
[Round "1.5"]
[White "Novotny, Jaromir"]
[Black "Mlynek, Petr"]
[Result "0-1"]
[ECO "A01"]
[WhiteElo "1788"]
[BlackElo "1969"]
[Annotator "NA RC"]
[PlyCount "78"]
[EventDate "2024.06.21"]
[EventType "swiss"]
[EventCountry "CZE"]
[SourceTitle "playchess.com"]
[Source "ChessBase"]
[SourceQuality "1"]
[TimeControl "40/7200:0"]

1. b3 {[%emt 0:00:00]} d5 {[%emt 0:00:00]} 2. Bb2 {[%emt 0:00:00]} Bf5 {[%emt 0:00:00]} 3. e3 {[%emt 0:00:00]} e6 {[%emt 0:00:00]} 4. Ne2 {[%emt 0:00:00]} Nf6 {[%emt 0:00:00]} 5. Ng3 {[%emt 0:00:00]} Bg6 {[%emt 0:00:00]} 6. Be2 {[%emt 0:01:42]} Bd6 {[%emt 0:00:00]} 7. c4 {[%emt 0:00:16]} Nbd7 {[%emt 0:00:00]} 8. Nc3 {[%emt 0:00:00]} c6 {[%emt 0:00:00]} 9. f4 {[%emt 0:03:46]} d4 {[%emt 0:05:09]} 10. Nb1 {[%emt 1:54:16]} c5 {[%emt 0:04:35]} 11. O-O {[%emt 0:00:00]} Qc7 {[%emt 0:03:46]} 12. Na3 {[%emt 0:00:00]} a6 {[%emt 0:00:01]} 13. Qe1 {[%emt 0:00:00]} h5 {[%emt 0:02:31]} 14. Bf3 {[%emt 0:00:00]} d3 {[%emt 0:02:08]} 15. Nh1 {[%emt 0:00:00]} e5 {[%emt 0:01:46]} 16. g3 {[%emt 0:00:00]} O-O-O {[%emt 0:02:24]} 17. Bd5 {[%emt 0:00:00]} Nxd5 {[%emt 0:01:59]} 18. cxd5 {[%emt 0:00:00]} Be4 {[%emt 0:00:05]} 19. Nc4 {[%emt 0:00:00]} Bxd5 {[%emt 0:02:00]} 20. Nxd6+ {[%emt 0:00:00]} Qxd6 {[%emt 0:00:00]} 21. e4 {[%emt 0:00:00]} Bc6 {[%emt 0:00:00]} 22. Qe3 {[%emt 0:00:00]} exf4 {[%emt 0:03:31]} 23. Rxf4 {[%emt 0:00:00]} f6 {[%emt 0:02:34]} 24. Nf2 {[%emt 0:00:00]} Rhe8 {[%emt 0:08:25]} 25. Rc1 {[%emt 0:00:00]} b6 {[%emt 0:00:42]} 26. b4 {[%emt 0:00:00]} cxb4 {[%emt 0:00:32]} 27. Nxd3 {[%emt 0:00:00]} Kb7 {[%emt 0:01:46]} 28. Nf2 {[%emt 0:00:00]} Nc5 {[%emt 0:02:02]} 29. d4 {[%emt 0:00:00]} Na4 {[%emt 0:00:10]} 30. Ba1 {[%emt 0:00:00]} Nc3 {[%emt 0:00:00]} 31. Bxc3 {[%emt 0:00:00]} bxc3 {[%emt 0:00:00]} 32. Qxc3 {[%emt 0:00:00]} g5 {[%emt 0:00:00]} 33. Qxc6+ {[%emt 0:00:00]} Qxc6 {[%emt 0:03:32]} 34. Rxc6 {[%emt 0:00:00]} gxf4 {[%emt 0:00:00]} 35. Rxf6 {[%emt 0:00:00]} fxg3 {[%emt 0:00:00]} 36. hxg3 {[%emt 0:00:00]} Rxd4 {[%emt 0:00:00]} 37. Rh6 {[%emt 0:00:00]} Rg8 {[%emt 0:01:36]} 38. Kg2 {[%emt 0:00:00]} Rd2 {[%emt 0:00:00]} 39. a4 {[%emt 0:00:00]} Rf8 {[%emt 0:00:00]} 0-1

[Event "Klatovy Open-C 2024"]
[Site "Klatovy"]
[Date "2024.06.29"]
[Round "1.6"]
[White "Danko, Jiri"]
[Black "Svec, Ludek"]
[Result "1/2-1/2"]
[ECO "B40"]
[WhiteElo "1954"]
[BlackElo "1764"]
[Annotator "RC"]
[PlyCount "71"]
[EventDate "2024.06.21"]
[EventType "swiss"]
[EventCountry "CZE"]
[SourceTitle "playchess.com"]
[Source "ChessBase"]
[SourceQuality "1"]
[TimeControl "40/7200:0"]

1. e4 {[%emt 0:00:00]} c5 {[%emt 0:00:00]} 2. Nf3 {[%emt 0:00:00]} e6 {[%emt 0:00:00]} 3. d4 {[%emt 0:00:00]} cxd4 {[%emt 0:00:00]} 4. Nxd4 {[%emt 0:00:00]} Nf6 {[%emt 0:00:00]} 5. Bd3 {[%emt 0:00:00]} Nc6 {[%emt 0:00:00]} 6. Nxc6 {[%emt 0:00:19]} bxc6 {[%emt 0:00:00]} 7. O-O {[%emt 0:00:20]} d5 {[%emt 0:00:00]} 8. e5 {[%emt 0:03:27]} Nd7 {[%emt 0:00:00]} 9. Re1 {[%emt 0:00:27]} Nc5 {[%emt 0:01:32]} 10. Bf1 {[%emt 0:00:00]} Ba6 {[%emt 0:05:44]} 11. Nc3 {[%emt 0:02:50]} Bxf1 {[%emt 0:00:00]} 12. Kxf1 {[%emt 0:00:18]} g6 {[%emt 0:06:06]} 13. Be3 {[%emt 0:14:35]} Nd7 {[%emt 0:03:29]} 14. f4 {[%emt 0:01:59]} Bg7 {[%emt 0:09:45]} 15. Ne2 {[%emt 0:04:51]} O-O {[%emt 0:01:37]} 16. c3 {[%emt 0:00:00]} c5 {[%emt 0:01:23]} 17. Kg1 {[%emt 0:05:17]} a5 {[%emt 0:02:23]} 18. b3 {[%emt 0:03:01]} Qe7 {[%emt 0:00:36]} 19. Qc2 {[%emt 0:04:23]} f6 {[%emt 0:00:54]} 20. exf6 {[%emt 0:00:00]} Nxf6 {[%emt 0:00:19]} 21. Rad1 {[%emt 0:06:27]} Ne4 {[%emt 0:00:17]} 22. c4 {[%emt 0:00:16]} Qb7 {[%emt 0:03:54]} 23. Bc1 {[%emt 0:06:06]} d4 {[%emt 0:04:23]} 24. Nxd4 {[%emt 0:09:05]} Bxd4+ {[%emt 0:00:00]} 25. Rxd4 {[%emt 0:00:00]} cxd4 {[%emt 0:00:00]} 26. Rxe4 {[%emt 0:00:00]} Qb6 {[%emt 0:04:15]} 27. Qd3 {[%emt 0:01:18]} Rad8 {[%emt 0:05:04]} 28. Bb2 {[%emt 0:03:16]} Rf7 {[%emt 0:06:45]} 29. g3 {[%emt 0:07:27]} Rfd7 {[%emt 0:00:47]} 30. Re5 {[%emt 0:06:46]} Kf7 {[%emt 0:02:29]} 31. Kg2 {[%emt 0:01:22]} a4 {[%emt 0:02:51]} 32. Rb5 {[%emt 0:06:30]} Qc6+ {[%emt 0:00:00]} 33. Kh3 {[%emt 0:00:00]} axb3 {[%emt 0:00:00]} 34. axb3 {[%emt 0:00:00]} Qa6 {[%emt 0:03:45]} 35. Qe4 {[%emt 0:03:15]} Qa8 {[%emt 0:02:29]} 36. Qe5 {[%emt 0:00:48]} 1/2-1/2

[Event "Klatovy Open-C 2024"]
[Site "Klatovy"]
[Date "2024.06.29"]
[Round "1.7"]
[White "Navratilova, Alena"]
[Black "Ondrejat, Miroslav"]
[Result "1/2-1/2"]
[ECO "A37"]
[WhiteElo "1729"]
[BlackElo "1940"]
[Annotator "NA RC"]
[PlyCount "49"]
[EventDate "2024.06.21"]
[EventType "swiss"]
[EventCountry "CZE"]
[SourceTitle "playchess.com"]
[Source "ChessBase"]
[SourceQuality "1"]
[TimeControl "40/7200:0"]

1. Nf3 {[%emt 0:00:00]} c5 {[%emt 0:00:00]} 2. c4 {[%emt 0:00:00]} g6 {[%emt 0:00:00]} 3. g3 {[%emt 0:00:00]} Bg7 {[%emt 0:00:00]} 4. Bg2 {[%emt 0:00:00]} Nc6 {[%emt 0:00:00]} 5. O-O {[%emt 0:00:00]} e5 {[%emt 0:00:00]} 6. e4 {[%emt 0:00:00]} d6 {[%emt 0:00:00]} 7. d3 {[%emt 0:00:00]} Nge7 {[%emt 0:00:00]} 8. Nc3 {[%emt 0:01:08]} O-O {[%emt 0:00:00]} 9. Be3 {[%emt 0:03:09]} Nd4 {[%emt 0:18:31]} 10. Qd2 {[%emt 0:06:42]} a6 {[%emt 0:01:41]} 11. Bh6 {[%emt 0:02:58]} Rb8 {[%emt 0:00:05]} 12. Nxd4 {[%emt 0:04:13]} cxd4 {[%emt 0:00:00]} 13. Nd5 {[%emt 0:00:39]} b5 {[%emt 0:04:48]} 14. Nxe7+ {[%emt 0:01:07]} Qxe7 {[%emt 0:00:00]} 15. Bxg7 {[%emt 0:01:24]} Kxg7 {[%emt 0:00:00]} 16. b3 {[%emt 0:01:18]} bxc4 {[%emt 0:03:44]} 17. bxc4 {[%emt 0:00:09]} f5 {[%emt 0:00:52]} 18. f3 {[%emt 0:04:56]} f4 {[%emt 0:06:54]} 19. g4 {[%emt 0:01:58]} Qc7 {[%emt 0:01:12]} 20. Rab1 {[%emt 0:01:52]} Bd7 {[%emt 0:00:00]} 21. Rfc1 {[%emt 0:03:20]} Qc5 {[%emt 0:03:41]} 22. Bf1 {[%emt 0:01:48]} a5 {[%emt 0:03:54]} 23. Be2 {[%emt 0:00:26]} Rb4 {[%emt 0:00:00]} 24. Rxb4 {[%emt 0:01:39]} axb4 {[%emt 0:10:30]} 25. Bd1 {[%emt 0:05:37]} 1/2-1/2

[Event "Klatovy Open-C 2024"]
[Site "Klatovy"]
[Date "2024.06.29"]
[Round "1.8"]
[White "Navratil, Jiri"]
[Black "Rychtecky, Pavel"]
[Result "1/2-1/2"]
[ECO "A46"]
[WhiteElo "2058"]
[BlackElo "1719"]
[Annotator "NA RC"]
[PlyCount "54"]
[EventDate "2024.06.21"]
[EventType "swiss"]
[EventCountry "CZE"]
[SourceTitle "playchess.com"]
[Source "ChessBase"]
[SourceQuality "1"]
[TimeControl "40/7200:0"]

1. d4 {[%emt 0:00:00]} Nf6 {[%emt 0:00:00]} 2. Nf3 {[%emt 0:00:00]} e6 {[%emt 0:00:00]} 3. Bf4 {[%emt 0:00:00]} c5 {[%emt 0:00:33]} 4. c3 {[%emt 0:00:00]} Be7 {[%emt 0:00:47]} 5. e3 {[%emt 0:00:00]} O-O {[%emt 0:00:00]} 6. Nbd2 {[%emt 0:00:00] A46: 1 d4 Nf6 2 Nf3 e6: Torre, London and Colle Systems.} Nh5 {[%emt 0:02:45]} 7. Bg3 {[%emt 0:00:00]} d6 {[%emt 0:01:15]} 8. Bd3 {[%emt 0:00:00]} g6 {[%emt 0:03:58]} 9. Qc2 {[%emt 0:00:42]} Nc6 {[%emt 0:01:20]} 10. Rd1 {[%emt 0:00:00]} cxd4 {[%emt 0:00:47]} 11. exd4 {[%emt 0:00:00]} Bd7 {[%emt 0:00:30]} 12. O-O {[%emt 0:00:00]} Rc8 {[%emt 0:01:42]} 13. Qb1 {[%emt 0:00:00]} a6 {[%emt 0:03:31]} 14. Rfe1 {[%emt 0:03:44]} Nxg3 {[%emt 0:04:44]} 15. hxg3 {[%emt 0:01:12]} Bf6 {[%emt 0:02:15]} 16. Ne4 {[%emt 0:01:45]} Be7 {[%emt 0:04:16]} 17. Ned2 {[%emt 0:04:36]} Kg7 {[%emt 0:03:58]} 18. Nc4 {[%emt 0:01:00]} Na5 {[%emt 0:06:25]} 19. Ne3 {[%emt 0:01:01]} Bc6 {[%emt 0:01:21]} 20. b4 {[%emt 0:08:30]} Bxf3 {[%emt 0:03:29]} 21. gxf3 {[%emt 0:00:00]} Nc6 {[%emt 0:00:22]} 22. f4 {[%emt 0:00:00]} Bf6 {[%emt 0:08:51]} 23. d5 $11 {[%emt 0:07:06]} Ne7 {[%emt 0:03:19]} 24. c4 {[%emt 0:05:45]} exd5 {[%emt 0:04:09]} 25. Nxd5 {[%emt 0:00:05]} Nxd5 {[%emt 0:02:17]} 26. cxd5 {[%emt 0:00:00]} Qb6 {[%emt 0:01:07]} 27. Re2 {[%emt 1:24:34]} Kg8 {[%emt 0:56:19]} 1/2-1/2

[Event "Klatovy Open-C 2024"]
[Site "Klatovy"]
[Date "2024.06.29"]
[Round "1.9"]
[White "Hanzlik, Jiri"]
[Black "Novotny, Jaroslav"]
[Result "0-1"]
[ECO "B50"]
[WhiteElo "1712"]
[BlackElo "2172"]
[Annotator "RC"]
[PlyCount "72"]
[EventDate "2024.06.21"]
[EventType "swiss"]
[EventCountry "CZE"]
[SourceTitle "playchess.com"]
[Source "ChessBase"]
[SourceQuality "1"]
[TimeControl "40/7200:0"]

1. e4 {[%emt 0:00:00]} c5 {[%emt 0:00:00]} 2. Nf3 {[%emt 0:00:00]} d6 {[%emt 0:00:00]} 3. Nc3 {[%emt 0:00:00]} Nf6 {[%emt 0:00:00]} 4. Bb5+ {[%emt 0:00:00]} Nbd7 {[%emt 0:00:12]} 5. e5 {[%emt 0:00:00]} dxe5 {[%emt 0:00:04]} 6. Nxe5 {[%emt 0:00:00]} a6 {[%emt 0:00:01]} 7. Nxd7 {[%emt 0:00:00]} Bxd7 {[%emt 0:02:20]} 8. Bxd7+ {[%emt 0:00:00]} Qxd7 {[%emt 0:00:00]} 9. Qf3 {[%emt 0:00:00]} e6 {[%emt 0:00:04]} 10. d3 {[%emt 0:00:00]} Be7 {[%emt 0:01:49]} 11. Bd2 {[%emt 0:00:00]} O-O {[%emt 0:00:40]} 12. O-O {[%emt 0:00:00]} b5 {[%emt 0:01:10]} 13. Rad1 {[%emt 0:00:00]} Rad8 {[%emt 0:02:07]} 14. Ne4 {[%emt 0:00:00]} Qd5 {[%emt 0:03:15]} 15. Nxf6+ {[%emt 0:00:00]} Bxf6 {[%emt 0:00:00]} 16. Qxd5 {[%emt 0:00:00]} Rxd5 {[%emt 0:00:00]} 17. b3 {[%emt 0:00:00]} Rfd8 {[%emt 0:01:19]} 18. Be3 {[%emt 0:02:31]} c4 {[%emt 0:00:10]} 19. d4 {[%emt 0:02:10]} Bxd4 {[%emt 0:00:38]} 20. Rxd4 {[%emt 0:00:01]} Rxd4 {[%emt 0:00:00]} 21. Bxd4 {[%emt 0:00:00]} Rxd4 {[%emt 0:00:00]} 22. b4 {[%emt 0:00:06]} Rd2 {[%emt 0:01:43]} 23. Rc1 {[%emt 0:00:00]} Kf8 {[%emt 0:03:01]} 24. Kf1 {[%emt 0:00:00]} c3 {[%emt 0:00:00]} 25. Ke1 {[%emt 0:00:00]} Ke7 {[%emt 0:00:00]} 26. Kf1 {[%emt 0:00:00]} f6 {[%emt 0:00:42]} 27. Ke1 {[%emt 0:00:00]} e5 {[%emt 0:00:00]} 28. h3 {[%emt 0:00:00]} h5 {[%emt 0:00:00]} 29. Kf1 {[%emt 0:00:00]} g5 {[%emt 0:00:00]} 30. g3 {[%emt 0:00:00]} Ke6 {[%emt 0:00:00]} 31. Ke1 {[%emt 0:00:00]} Kf5 {[%emt 0:00:27]} 32. Kf1 {[%emt 0:00:00]} h4 {[%emt 0:02:40]} 33. Kg2 {[%emt 0:00:00]} e4 {[%emt 0:00:33]} 34. Kf1 {[%emt 0:00:00]} g4 {[%emt 0:03:19]} 35. gxh4 {[%emt 0:01:07]} gxh3 {[%emt 0:00:00]} 36. h5 {[%emt 0:00:00]} Kg5 {[%emt 0:00:00]} 0-1